Cogmind - Beta 15 @@@ ROGUE MODE // 2025.08.22 @ 12:56:37 Player: Cracklepappy Result: Destroyed by Piercing Trap Performance ------------- Evolutions (0) 0 Regions Visited (2) 400 Robots Destroyed (52) 260 Value Destroyed (1063) 1063 Prototype IDs (2) 40 Alien Tech Used (0) 0 Bonus (0) 0 TOTAL SCORE: 1763 Bonus ------- None Cogmind --------- Core Integrity 0/250 Matter 300/300 Energy 249/250 System Corruption 0% Temperature Cool (0) Movement Rolling (230) Ox10 Location -10/Subcaves Parts ------- > --- POWER (1) -------- Ion Engine > --- PROPULSION (2) --- Wheel > --- UTILITY (2) ------ Improved Heat Sink Huge Storage Unit > --- WEAPON (2) ------- Subdweller Beam Cannon Subdweller Beam Cannon > --- INVENTORY (25) --- Light Nuclear Core Wheel Wheel Wheel Wheel Improved Heat Sink Huge Storage Unit Humpback Medium Matter Pod (100) Medium Matter Pod (100) Seismic Detector Hacking Suite Heavy Riot Gun Subdweller Laser Assault Rifle Heavy Battle Rifle Light Cannon Light Cannon Slug Cannon Datajack Ripper Peak State ------------ > --- POWER ------------ Ion Engine > --- PROPULSION ------- Wheel Wheel > --- UTILITY ---------- Huge Storage Unit Seismic Detector > --- WEAPON ----------- Riot Gun Heavy Riot Gun > --- INVENTORY -------- Light Nuclear Core Wheel Wheel Wheel Wheel Wheel Improved Heat Sink Improved Heat Sink Huge Storage Unit Medium Matter Pod Medium Matter Pod Seismic Detector Hacking Suite Subdweller Laser Assault Rifle Heavy Battle Rifle Light Cannon Light Cannon Slug Cannon Datajack Mining Laser Ripper [Rating: 16] Favorites ----------- Power Ion Engine Engine Ion Engine Power Core Light Nuclear Core Propulsion Wheel Wheel Wheel Utility Seismic Detector Device Seismic Detector Storage Huge Storage Unit Weapon Assault Rifle Energy Gun EM Pulse Gun Energy Cannon Subdweller Beam Cannon Ballistic Gun Assault Rifle Ballistic Cannon Light Cannon Special Weapon Mining Laser Build | -11 -10 -10 ------- Run | Yrd Mat Sub Slots Evolved . | . . . Power . | . . . Propulsion . | . . . Utility . | . . . Weapon . | . . . Parts Attached 37 | 10 16 11 Power 4 | 1 2 1 Engine 3 | 1 1 1 Core 1 | . 1 . Reactor . | . . . Propulsion 11 | 5 5 1 Treads . | . . . Leg . | . . . Wheel 11 | 5 5 1 Hover . | . . . Flight . | . . . Utility 8 | 2 4 2 Device 3 | 1 1 1 Storage 5 | 1 3 1 Processor . | . . . Hackware . | . . . Protection . | . . . Artifact . | . . . Weapon 14 | 2 5 7 Energy Gun 5 | . 3 2 Energy Cannon 2 | . . 2 Ballistic Gun 2 | 2 . . Ballistic Cannon 4 | . 2 2 Launcher . | . . . Special Weapon 1 | . . 1 Impact Weapon . | . . . Slashing Weapon . | . . . Piercing Weapon . | . . . Special Melee Weapon . | . . . Unidentified Prototypes . | . . . Parts Lost 13 | . 6 7 Power 2 | . 1 1 Propulsion 5 | . 2 3 Utility 2 | . 1 1 Weapon 4 | . 2 2 Highest Loss Streak 2 | . 2 2 To Critical Strikes 1 | . 1 . Average Backups 18 | 4 19 23 Power 1 | . 1 1 Propulsion 4 | 1 4 5 Utility 5 | . 4 7 Weapon 7 | 1 7 8 Tool/Special . | . . . Unused Backups 29 | 2 8 19 Power 1 | . . 1 Propulsion 6 | 1 1 4 Utility 13 | 1 6 6 Weapon 8 | . 1 7 Tool/Special 1 | . . 1 Average Slot Usage (%) 98 | . 98 97 Engine 12 | . 11 14 Core 1 | . 1 . Wheel 27 | . 27 27 Device 13 | . 13 12 Storage 14 | . 14 14 Energy Gun 12 | . 13 10 Ballistic Gun 10 | . 14 . Ballistic Cannon 4 | . . 14 Peak Build Rating 16 | 7 10 16 Average Rating 9 | 5 9 13 On Entrance 5 | . 7 10 Naked Turns . | . . . Heaviest Build 102 | 13 92 102 Greatest Support 32 | 32 20 20 Greatest Overweight (x) 10 | . 8 10 Average Overweight (x) 3 | . 3 4 Largest Inventory Capacity 25 | 8 25 25 Average Capacity 22 | 7 23 25 Most Carried 25 | 8 25 25 Average Carried 19 | 4 19 23 Final Capacity 25 | 8 25 25 Final Carried 25 | 8 25 22 Class Distribution -------------------- 91% | Mutant 8% | Scavenger-Mutant Dominant Class ---------------- Mutant | -10/Materials Mutant | -10/Subcaves Resources | -11 -10 -10 ----------- Run | Yrd Mat Sub Matter Collected 1485 | 520 607 358 Remotely . | . . . Salvage Created 1656 | 260 989 407 Parts 101 | 28 59 14 Haulers Intercepted 2 | . 2 . Recyclers Shooed . | . . . Parts Field Recycled . | . . . Retrieved Matter . | . . . Parts Self-Destructed 2 | . . 2 Prevented . | . . . Kills | -11 -10 -10 ------- Run | Yrd Mat Sub Combat Hostiles Destroyed 25 | . 15 10 Guns 13 | . 12 1 Cannons 7 | . . 7 AOE 3 | . 3 . Classes Destroyed 11 | 3 6 2 Worker 11 | 2 9 . Builder 1 | . 1 . Tunneler 9 | 9 . . Hauler 2 | . 2 . Recycler 1 | 1 . . Operator 1 | . 1 . Watcher 2 | . 2 . Swarmer 2 | . 2 . Grunt 13 | . 13 . Sentry 1 | . . 1 Subdweller 9 | . . 9 Best Kill Streak 6 | 4 6 3 Combat Bots Only 3 | . 2 3 Max Kills in Single Turn 1 | 1 1 1 Gunslinging . | . . . Exploded 1 | . 1 . Melee . | . . . Uniques/NPCs Destroyed . | . . . Combat | -11 -10 -10 -------- Run | Yrd Mat Sub Hostile Shots Fired 132 | . 89 43 Missed 35 | . 28 7 Hits 97 | . 61 36 Projectile 97 | . 61 36 AOE 1 | . . 1 Critical Strikes 5 | . 2 3 Damage Taken 1468 | . 659 809 Core 269 | . 110 159 Absorbed by Shields . | . . . Core Remaining (%) 100 | 100 . . Volleys Fired 164 | 30 90 44 Largest 2 | 2 2 2 Hottest 160 | 40 80 160 Shots Fired 317 | 60 178 79 Gun 256 | 60 178 18 Cannon 57 | . . 57 Launcher . | . . . Special 4 | . . 4 Kinetic 214 | 60 106 48 Thermal 13 | . . 13 Explosive . | . . . Electromagnetic 90 | . 72 18 Robot Hit Streak 12 | 5 10 12 Robot Miss Streak 4 | 3 4 2 Penetration Max . | . . . Secondary Targets 1 | . 1 . Max Gunslinging Chain 1 | . 1 . Shots Hit Robots 192 | 32 106 54 Core Hits 75 | 13 46 16 Critical Kills 1 | . . 1 Critical Parts Destroyed . | . . . Critical Strikes 4 | . . 4 Meltdown 1 | . . 1 Blast 3 | . . 3 Melee Attacks . | . . . Impact . | . . . Slashing . | . . . Piercing . | . . . Sneak Attacks . | . . . Combat Hostiles . | . . . Follow-up Attacks . | . . . Damage Inflicted 3137 | 403 1624 1110 Guns 2116 | 403 1432 281 Cannons 781 | . . 781 Explosions 240 | . 192 48 Melee . | . . . Ramming . | . . . Kinetic 1930 | 403 931 596 Thermal 425 | . 192 233 Explosive . | . . . Electromagnetic 782 | . 501 281 Impact . | . . . Slashing . | . . . Piercing . | . . . Highest Corruption . | . . . Average Corruption . | . . . Corruption Purged . | . . . Corruption Blocked . | . . . Overload Shots . | . . . Overflow Damage 21 | . . 21 Projectiles . | . . . Explosions 21 | . . 21 Melee . | . . . Knockbacks 2 | . . 2 Impact . | . . . Kinetic 2 | . . 2 Secondary . | . . . Self-Inflicted Damage 31 | . 7 24 Shots 2 | . 1 1 Rammed . | . . . Targets Rammed . | . . . Kicked . | . . . Crushed . | . . . Highest Temperature 169 | . 169 30 Average Temperature 45 | . 49 11 Received Heat Transfer 411 | . 276 135 Siege Activations . | . . . Martial Activations . | . . . Shielding Activations . | . . . Robots Disrupted . | . . . Combat Hostiles . | . . . Robots Corrupted 1 | . . 1 Combat Hostiles 1 | . . 1 Parts Fried 1 | . . 1 Impact Corruptions . | . . . Robots Melted 1 | . . 1 Combat Hostiles 1 | . . 1 Parts Melted 1 | . . 1 Heat Transferred 559 | . 250 309 Parts Sabotaged . | . . . Parts Stolen . | . . . Parts Stripped . | . . . Power Chain Reactions 5 | . 4 1 Alert | -11 -10 -10 ------- Run | Yrd Mat Sub Maximum Alert Level . | . . . Low Security (%) 100 | 100 100 . Level 1 . | . . . Level 2 . | . . . Level 3 . | . . . Level 4 . | . . . Level 5 . | . . . High Security . | . . . Max Security . | . . . Peak Influence 107 | 15 107 . Initial . | . . . Average 46 | 2 52 . Influence Increases 700 | 60 620 20 Destroy 0b10 Robot/C 320 | . 300 20 Destroy 0b10 Robot/NC 135 | 60 75 . Destroy Leader 88 | . 88 . Successful Hack 23 | . 23 . Select Force Hacks 60 | . 60 . Disable Machine 30 | . 30 . Destroy Structure 14 | . 14 . Lose Combat Pursuer 30 | . 30 . Influence Decreases 700 | 60 584 56 Entered New Map 18 | . . 18 Time Decay 612 | 60 524 28 Lost Part 70 | . 60 10 Squads Dispatched 5 | . 5 . Investigation 4 | . 4 . Extermination . | . . . Reinforcement 1 | . 1 . Assault . | . . . Garrison . | . . . Intercept . | . . . Searches Triggered . | . . . Construction Impeded . | . . . Haulers Reinforced . | . . . Active Scanning Responses . | . . . Cargo Convoy Interrupts . | . . . Stealth | -11 -10 -10 --------- Run | Yrd Mat Sub Distress Signals 2 | . 2 . Communications Jammed . | . . . Distress Signals . | . . . Times Spotted 32 | . 22 10 Peak Tracking Total 4 | . 4 2 Tactical Retreats 1 | . 1 . Traps | -11 -10 -10 ------- Run | Yrd Mat Sub Traps Triggered 3 | . 2 1 Indirectly . | . . . Trap Hack Attempts . | . . . Triggered . | . . . Disarmed . | . . . Reprogrammed . | . . . Reused . | . . . Traps Extracted . | . . . Installed . | . . . Triggered . | . . . Machines | -11 -10 -10 ---------- Run | Yrd Mat Sub Machines Disabled 2 | . 2 . Max in Single Turn 1 | . 1 . Machines Repaired . | . . . Machines Dismantled . | . . . Machines Sabotaged . | . . . Overloaded Fab Kills . | . . . Hacking | -11 -10 -10 --------- Run | Yrd Mat Sub Machines Accessed 9 | . 9 . Terminals 7 | . 7 . Fabricators . | . . . Repair Stations . | . . . Recycling Units 2 | . 2 . Scanalyzers . | . . . Garrison Access . | . . . Total Hacks 27 | . 27 . Successful 11 | . 11 . Failed 16 | . 16 . Catastrophic 4 | . 4 . Database Lockouts . | . . . Manual 20 | . 20 . Terminals 22 | . 22 . Fabricators . | . . . Repair Stations . | . . . Recycling Units 5 | . 5 . Scanalyzers . | . . . Garrison Access . | . . . Terminal Hacks 2 | . 2 . Robot Schematic 1 | . 1 . Prototype ID Bank 1 | . 1 . Fabricator Hacks . | . . . Repair Station Hacks . | . . . Recycling Unit Hacks 1 | . 1 . Retrieve Components 1 | . 1 . Scanalyzer . | . . . Garrison Access Hacks . | . . . Unauthorized Hacks 8 | . 8 . Terminals 6 | . 6 . Operators 1 | . 1 . Skim 5 | . 5 . Fabricators . | . . . Repair Stations . | . . . Recycling Units 2 | . 2 . Tunnel 2 | . 2 . Scanalyzers . | . . . Garrison Access . | . . . Data Cores Recovered . | . . . Used . | . . . Hacking Detections 9 | . 9 . Full Trace Events . | . . . Feedback Events . | . . . Feedback Blocked . | . . . Robot Schematics Acquired 1 | . 1 . Robots Built . | . . . Authchips . | . . . Time . | . . . Total Robot Build Rating . | . . . Part Schematics Acquired . | . . . Parts Built . | . . . Authchips . | . . . Time . | . . . Total Part Build Rating . | . . . Parts Repaired . | . . . Time . | . . . Parts Recycled . | . . . Recycled Matter . | . . . Retrieved Matter . | . . . Retrieved Components 4 | . 4 . Parts Scanalyzed . | . . . Part Schematics Acquired . | . . . Parts Damaged . | . . . Bothacking | -11 -10 -10 ------------ Run | Yrd Mat Sub Used RIF Installer . | . . . Robots Hacked . | . . . Non-combat . | . . . Combat . | . . . Robot Hacks Applied . | . . . Relay Couplers Released . | . . . Fabnet Peak Effective % . | . . . Robots Rewired . | . . . Allies Hacked . | . . . Hacks Repelled . | . . . Allies | -11 -10 -10 -------- Run | Yrd Mat Sub Total Allies . | . . . Largest Group . | . . . Highest-Rated Group . | . . . Highest-Rated Ally . | . . . Total Orders . | . . . Ally Attacks . | . . . Total Damage . | . . . Kills . | . . . Allies Corrupted . | . . . Allies Melted . | . . . Intel | -11 -10 -10 ------- Run | Yrd Mat Sub Active Infowar (turns) 2678 | 19 1925 734 Seismic 2678 | 19 1925 734 Robot Analysis Total . | . . . Derelict Logs Recovered . | . . . Drone Launches . | . . . Drone Recoveries . | . . . Exploration | -11 -10 -10 ------------- Run | Yrd Mat Sub Turns Passed 3077 | 265 1969 843 Spaces Moved 1650 | 169 1032 449 Core 2 | 2 . . Treads . | . . . Legs . | . . . Wheels 1648 | 167 1032 449 Hover . | . . . Flight . | . . . Fastest Speed 50 | 50 80 140 Average Speed 132 | 88 134 142 Slowest Speed 230 | 100 200 230 Overloaded Moves . | . . . Propulsion Burnouts . | . . . Robots Hopped . | . . . Potential Cave-ins . | . . . Cave-ins Triggered . | . . . Exploration Rate (%) 42 | 6 99 23 Regions Visited 2 Branch Regions 1 Pre-discovered Areas 3 | . 3 . Known Exits Taken 1 | . 1 . Unknown Exits Taken 1 | 1 . . Scrap Searched 6 | . . 6 Spaces Dug . | . . . Terrain Destroyed 18 | . 11 7 Melee . | . . . Projectile 1 | . . 1 AOE 17 | . 11 6 Terrain Rammed . | . . . Walls Destroyed . | . . . Machines Disabled . | . . . Actions | -11 -10 -10 --------- Run | Yrd Mat Sub Total 2229 | 221 1440 568 Wait 290 | . 246 44 Move 1648 | 168 1031 449 Hop . | . . . Pick Up 53 | 10 34 9 Fast Attach 8 | 6 2 . Attach 12 | 1 4 7 Detach 1 | . . 1 Swap 26 | 3 16 7 Drop 27 | 3 17 7 Fire 164 | 30 90 44 Melee . | . . . Ram . | . . . Kick . | . . . Crush . | . . . Escape Stasis . | . . . Rewire . | . . . Trap . | . . . Miscellaneous . | . . . Route ------- -11/Scrapyard -10/Materials (discovered 5 exits: [*Mat x3] / [*Min] / *Sub) -10/Subcaves (discovered 2 exits: Mat x2) History --------- Turn | Location | Event 12 | -11/Scrapyard | Discovered new exit (range 16) 266 | -11/Scrapyard | Entered Materials 306 | -10/Materials | Build established: Mutant 514 | -10/Materials | Discovered new exit (range 16) 684 | -10/Materials | Discovered new exit (range 8) 800 | -10/Materials | Discovered new exit (range 12) 968 | -10/Materials | Discovered new exit (range 15) 1167 | -10/Materials | Learned Storage security intel 1232 | -10/Materials | Learned location of Mines (-10) 1287 | -10/Materials | Identified exit to Subcaves 1334 | -10/Materials | Learned location of 2 exits from Mines 1373 | -10/Materials | Learned 2 Mines zone layouts 1437 | -10/Materials | Learned Storage trap positions 1537 | -10/Materials | Loaded intel: 4 trap records 2235 | -10/Materials | Entered Subcaves 2236 | -10/Subcaves | Approached by a straggling Scientist 2236 | -10/Subcaves | Identified exit to Materials 2271 | -10/Subcaves | Disturbed a concealed Subdweller 2273 | -10/Subcaves | Core integrity fell below 50% 2457 | -10/Subcaves | A swath of the cavern ceiling suddenly collapsed 2664 | -10/Subcaves | Disturbed a concealed Subdweller 2962 | -10/Subcaves | Core integrity fell below 20% 3050 | -10/Subcaves | Ambushed by Subdweller buried in earth 3078 | -10/Subcaves | Destroyed by Piercing Trap Last Messages --------------- 02962_ NO-AWG(R) system terminally corrupted. 02962_ Disposable Heat Sink fried. 02965_ Riot Gun destroyed. 02969_ Seismic Detector destroyed. 02970_ 5Q-VHO(R) destroyed. 02971_ Acquired 10 matter. 92-021(c): "I think it's somewhere west of here" 03030_ Chain reaction triggered in Sub. Power Source. 03030_ Wheel destroyed. 03030_ Destroyed Wheel. 03034_ ND-P57(R) destroyed. 03042_ Acquired 40 matter. 03050_ Wheel destroyed. 03051_ X3-RDA(R): "ARGHSUB!" 03053_ LM-291(R) destroyed. 03056_ X3-RDA(R) suffers critical hit (Meltdown). 03056_ Disposable Heat Sink melted. 03078_ Triggered Piercing Trap. 03078_ Spikes shoot up from the floor. 03078_ Critical hit (Impale). Map ----- +----------------------------------------------------+ | ?????????????????????????????## ####### #???????? | | ?????????????????????????????# ###### #???????? | | ?????????????????????????????## # #" #????????? | | ?????????????????????????????# |" " #????????? | | ?????????????????????????????# & " ##???????? | | ?????????????????????????????## *%# # #???????? | | ??????????????????????????????##!&##### #???????? | | ???????????????????????????????#%*##?## #???????? | | ???????????????????????????????##=%### #???????? | | ???????????????????????????????# [#" " #???????? | | ???????????????????????????????## """ #???????? | | ????????????????????????????????# # # #???????? | | ???????????????????????????????## ## ###???????? | | ???????????????????????????????# ## #????????? | | ???????????????????????????????# ## ##????????? | | ??????????????????????????????## ## ##???????? | | ??????????????????????????????# "" #???????? | | ??????????????????###?????????###" ! ##???????? | |